fUSD/lending_fUSD_20240701
["ID","MTS","AMOUNT","RATE_DAILY","PERIOD"]
[330797896,1719801040091,-170.92853389,0.00018688,2]
[330797897,1719801040103,-152.75625898,0.00018692,2]
[330797898,1719801040114,-150.45691153,0.00018704,2]
[330797899,1719801040125,-152.28709695,0.00018742,2]
[330797900,1719801040135,-686.18155533,0.00018753,2]
[330797901,1719801040145,-1494.77524589,0.00018759,2]
[330797902,1719801040157,-155.15243113,0.00018764,2]
[330797903,1719801040168,-152.75625898,0.00018771,2]
[330797904,1719801040179,-161.02444263,0.00018778,2]
[330797905,1719801040189,-383.37028258,0.00018809,2]
[330797906,1719801040200,-634.58184927,0.00018835,2]
[330797907,1719801040211,-737.28000942,0.00018835,2]
[330797908,1719801040222,-152.4519936,0.00018847,2]
[330797909,1719801040232,-1879.14,0.00018849,30]
[330797910,1719801040243,-1534.23957908,0.00018853,2]
[330797911,1719801040254,-383.37028258,0.00018861,2]
[330797912,1719801040264,-155.0,0.00018864,2]
[330797913,1719801040275,-21217.53801094,0.00018866,2]
[330797914,1719801040286,-154.94398225,0.00018886,2]
[330797915,1719801040296,-167.0,0.00018886,2]
[330797916,1719801040307,-150.42510389,0.00018899,2]
[330797917,1719801040327,-155.20496171,0.00018899,2]
[330797918,1719801040341,-11526.07754917,0.000189,2]
[330797919,1719801040352,-328.74786197,0.00018919,2]
[330797920,1719801040364,-371.79102031,0.00018919,2]
[330797921,1719801040375,-151.52380884,0.0001893,2]
[330797922,1719801040387,-634.58184927,0.00018935,2]
[330797923,1719801040399,-317.66316052,0.00018969,2]
[330797924,1719801040409,-428.3,0.00018984,2]
[330797925,1719801040420,-266.65898514,0.00018999,2]
[330797926,1719801040433,-526.28304125,0.00018999,2]
[330797927,1719801040445,-156.26160175,0.00019,2]
[330797928,1719801040456,-155.62543554,0.00019,2]
[330797929,1719801040467,-300.0,0.00019,2]
[330797930,1719801040479,-634.58184927,0.00019015,2]
[330797931,1719801040489,-190.428705,0.00019035,2]
[330797932,1719801040499,-686.18155533,0.00019039,2]
[330797933,1719801040510,-418.5112641,0.00019039,2]
[330797934,1719801040520,-300.0,0.00019054,2]
[330797935,1719801040532,-686.18155533,0.00019062,2]
[330797936,1719801040544,-686.18155533,0.00019074,2]
[330797937,1719801040555,-156.08218612,0.00019077,2]
[330797938,1719801040566,-716.40696563,0.00019091,2]
[330797939,1719801040577,-195.89847219,0.00019096,2]
[330797940,1719801040589,-155.7422207,0.00019121,2]
[330797941,1719801040599,-686.18155533,0.00019129,2]
[330797942,1719801040610,-154.40248191,0.00019136,2]
[330797943,1719801040621,-5174.0,0.00019139,2]
[330797944,1719801040632,-5807.0,0.00019139,2]
[330797945,1719801040644,-291.0,0.00019139,2]
[330797946,1719801040658,-11305.742,0.00019139,2]
[330797947,1719801040668,-200.0,0.00019178,2]
[330797948,1719801040678,-200.0,0.00019178,2]
[330797949,1719801040690,-200.0,0.00019178,2]
[330797950,1719801040701,-200.0,0.00019178,2]
[330797951,1719801040711,-78.81096233,0.00019178,2]
[330797952,1719801040766,-423.60779968,0.00018,2]
[330797953,1719801040777,-423.60779968,0.00018,2]
[330797954,1719801040788,-121.18903767,0.00019178,2]
[330797955,1719801040799,-200.0,0.00019178,2]
[330797956,1719801040809,-183.0,0.00019178,2]
[330797957,1719801040819,-250.0,0.00019178,2]
[330797958,1719801040830,-150.0,0.00019178,2]
[330797959,1719801040842,-270.00278037,0.00019178,2]
[330797960,1719801040856,-1493.591569,0.00019178,2]
[330797961,1719801040870,-6379.0326,0.00019178,2]
[330797962,1719801040883,-1315.94695395,0.00019178,2]
[330797963,1719801040896,-756.49201725,0.00019178,2]
[330797964,1719801041121,-2978.60799728,0.00014831,2]
[330797965,1719801041131,-1670.657,0.00016139,2]
[330797966,1719801041141,-423.60779968,0.00018,2]
[330797967,1719801041152,-423.60779968,0.00018,2]
[330797968,1719801041162,-423.60779968,0.00018,2]
[330797969,1719801041172,-439.98249733,0.00019177,2]
[330797970,1719801041182,-44784.93407943,0.00019178,2]
[330797971,1719801041192,-3154.1,0.00019178,2]
[330797972,1719801041203,-174.779568,0.00019194,2]
[330797973,1719801041212,-631.0,0.00019221,2]
[330797974,1719801041222,-195.89847219,0.00019224,2]
[330797975,1719801041232,-151.04669053,0.0001928,2]
[330797976,1719801041242,-152.28709695,0.00019293,2]
[330797977,1719801041252,-161.02444257,0.00019295,2]
[330797978,1719801041262,-334.89192372,0.0001935,2]
[330797979,1719801041275,-150.0,0.00019378,2]
[330797980,1719801041285,-262.0813952,0.00019381,2]
[330797981,1719801041296,-151.04669053,0.00019396,2]
[330797982,1719801041306,-1000.0,0.00019396,2]
[330797983,1719801041317,-686.18155533,0.00019415,2]
[330797984,1719801041327,-195.89847219,0.00019416,2]
[330797985,1719801041339,-634.58184927,0.00019437,2]
[330797986,1719801041349,-345.90348,0.00019452,2]
[330797987,1719801041360,-167.0,0.00019454,2]
[330797988,1719801041371,-262.0813952,0.0001946,2]
[330797989,1719801041380,-151.04669053,0.00019465,2]
[330797990,1719801041391,-166.66666668,0.00019468,2]
[330797991,1719801041401,-152.28709695,0.00019482,2]
[330797992,1719801041411,-151.52380884,0.00019529,2]
[330797993,1719801041422,-155.7422207,0.00019541,2]
[330797994,1719801041434,-152.28709695,0.00019544,2]
[330797995,1719801041445,-634.58184927,0.0001956,2]
[330797996,1719801041455,-1534.23957908,0.00019563,2]
[330797997,1719801041465,-21217.53801094,0.00019573,2]
[330797998,1719801041476,-150.45691153,0.00019578,2]
[330797999,1719801041486,-150.45691153,0.00019639,2]
[330798000,1719801041497,-634.58184927,0.00019648,2]
[330798001,1719801041507,-1329.58906729,0.0001966,2]
[330798002,1719801041518,-153.4125173,0.00019675,2]
[330798003,1719801041528,-150.0,0.00019683,2]
[330798004,1719801041538,-262.0813952,0.000197,2]
[330798005,1719801041548,-151.04669053,0.00019707,2]
[330798006,1719801041559,-514.59387074,0.00019725,2]
[330798007,1719801041569,-152.66657846,0.00019726,2]
[330798008,1719801041579,-418.51126409,0.00019732,2]
[330798009,1719801041591,-152.75625898,0.00019759,2]
[330798010,1719801041601,-155.7422207,0.00019769,2]
[330798011,1719801041610,-383.37028258,0.00019804,2]
[330798012,1719801041620,-161.02444257,0.00019813,2]
[330798013,1719801041631,-686.18155533,0.00019816,2]
[330798014,1719801041642,-317.66316049,0.00019827,2]
[330798015,1719801041658,-759.0,0.00019832,2]
[330798016,1719801041668,-153.4125173,0.00019836,2]
[330798017,1719801041678,-153.4125173,0.00019843,2]
[330798018,1719801041691,-686.18155533,0.00019853,2]
[330798019,1719801041701,-195.89847219,0.00019854,2]
[330798020,1719801041711,-195.89847219,0.00019871,2]
[330798021,1719801041722,-154.94398225,0.00019894,2]
[330798022,1719801041734,-154.94398225,0.00019896,2]
[330798023,1719801041745,-11513.97942358,0.000199,2]
[330798024,1719801041756,-11513.97942356,0.000199,2]
[330798025,1719801041767,-11513.97942356,0.000199,2]
[330798026,1719801041778,-152.66657846,0.00019901,2]
[330798027,1719801041788,-152.66657846,0.00019905,2]
[330798028,1719801041799,-262.0813952,0.00019963,2]
[330798029,1719801041808,-154.94398225,0.00019964,2]
[330798030,1719801041818,-262.0813952,0.00019973,2]
[330798031,1719801041828,-152.75625898,0.00019982,2]
[330798032,1719801041839,-634.58184927,0.00019982,2]
[330798033,1719801041849,-383.37028258,0.00019987,2]
[330798034,1719801041859,-155.0,0.0001999,2]
[330798035,1719801041869,-371.73348816,0.0001999,2]
[330798036,1719801041879,-151.52380884,0.00019998,2]
[330798037,1719801041889,-195.89847219,0.00019998,2]
[330798038,1719801041899,-150.0,0.00020002,2]
[330798039,1719801041909,-167.0,0.00020021,2]
[330798040,1719801041918,-383.37028258,0.00020022,2]
[330798041,1719801041928,-195.89847219,0.00020025,2]
[330798042,1719801041938,-1152.0,0.00020029,2]
[330798043,1719801041948,-634.58184927,0.00020042,2]
[330798044,1719801041960,-150.0,0.00020094,2]
[330798045,1719801041970,-240.87751381,0.000201,2]
[330798046,1719801041980,-1000.0,0.000201,2]
[330798047,1719801041991,-225.0,0.000201,2]
[330798048,1719801042001,-150.0,0.00020101,2]
[330798049,1719801042012,-150.0,0.00020105,2]
[330798050,1719801042022,-150.0,0.00020105,2]
[330798051,1719801042032,-150.0,0.00020105,2]
[330798052,1719801042043,-150.0,0.00020106,2]
[330798053,1719801042054,-150.0,0.00020132,2]
[330798054,1719801042065,-239.69,0.00020173,2]
[330798055,1719801042076,-150.0,0.00020174,2]
[330798056,1719801042087,-151.04669053,0.00020187,2]
[330798057,1719801042096,-150.0,0.00020187,2]
[330798058,1719801042107,-153.25,0.00020196,2]
[330798059,1719801042116,-195.89847219,0.00020206,2]
[330798060,1719801042126,-150.0,0.00020209,2]
[330798061,1719801042136,-166.66666667,0.00020213,2]
[330798062,1719801042147,-153.4125173,0.00020234,2]
[330798063,1719801042157,-150.0,0.00020239,2]
[330798064,1719801042167,-444.9185,0.0002025,2]
[330798065,1719801042176,-1534.23957908,0.00020272,2]
[330798066,1719801042186,-345.90348,0.00020274,2]
[330798067,1719801042196,-150.0,0.00020276,2]
[330798068,1719801042207,-150.0,0.00020277,2]
[330798069,1719801042217,-21217.53801094,0.0002028,2]
[330798070,1719801042227,-151.04669053,0.00020294,2]
[330798071,1719801042238,-150.0,0.00020318,2]
[330798072,1719801042248,-161.02444257,0.0002033,2]
[330798073,1719801042259,-634.58184927,0.00020401,2]
[330798074,1719801042270,-152.66657846,0.00020418,2]
[330798075,1719801042281,-634.58184927,0.0002042,2]
[330798076,1719801042291,-418.51126409,0.00020426,2]
[330798077,1719801042302,-262.0813952,0.0002046,2]
[330798078,1719801042311,-154.94398225,0.00020472,2]
[330798079,1719801042322,-154.94398225,0.00020474,2]
[330798080,1719801042331,-152.28709695,0.00020476,2]
[330798081,1719801042343,-383.37028258,0.00020486,2]
[330798082,1719801042354,-150.0,0.00020487,2]
[330798083,1719801042363,-262.0813952,0.0002049,2]
[330798084,1719801042377,-153.4125173,0.0002049,2]
[330798085,1719801042387,-2000.0,0.000205,2]
[330798086,1719801042398,-154.94398225,0.00020538,2]
[330798087,1719801042408,-172.29,0.00020548,2]
[330798088,1719801042418,-20065.19,0.00020548,2]
[330798089,1719801042429,-150.45691153,0.00020561,2]
[330798090,1719801042440,-150.0,0.0002058,2]
[330798091,1719801042450,-166.66666667,0.0002058,2]
[330798092,1719801042461,-150.0,0.00020589,2]
[330798093,1719801042471,-383.37028258,0.00020595,2]
[330798094,1719801042482,-151.03726489,0.00020599,2]
[330798095,1719801042492,-150.0,0.00020609,2]
[330798096,1719801042502,-383.37028258,0.00020622,2]
[330798097,1719801042512,-156.4032567,0.0002064,2]
[330798098,1719801042523,-150.42510389,0.00020654,2]
[330798099,1719801042533,-262.0813952,0.00020658,2]
[330798100,1719801042543,-1500.0,0.0002067,2]
[330798101,1719801042553,-156.4032567,0.00020682,2]
[330798102,1719801042563,-317.66316049,0.00020685,2]
[330798103,1719801042573,-150.45691153,0.00020691,2]
[330798104,1719801042583,-150.0,0.00020692,2]
[330798105,1719801042597,-152.28709695,0.00020708,2]
[330798106,1719801042606,-150.0,0.00020713,2]
[330798107,1719801042616,-153.4125173,0.00020717,2]
[330798108,1719801042626,-1500.0,0.00020717,2]
[330798109,1719801042639,-154.40248191,0.00020723,2]
[330798110,1719801042655,-634.58184927,0.00020735,2]
[330798111,1719801042664,-500.0,0.00020735,2]
[330798112,1719801042674,-500.0,0.00020735,2]
[330798113,1719801042684,-500.0,0.00020735,2]
[330798114,1719801042695,-500.0,0.00020735,2]
[330798115,1719801042704,-500.0,0.00020735,2]
[330798116,1719801042715,-500.0,0.00020735,2]
[330798117,1719801042726,-500.0,0.00020735,2]
[330798118,1719801042736,-500.0,0.00020735,2]
[330798119,1719801042745,-500.0,0.00020735,2]
[330798120,1719801042755,-500.0,0.00020735,2]
[330798121,1719801042764,-500.0,0.00020735,2]
[330798122,1719801042774,-500.0,0.00020735,2]
[330798123,1719801042784,-500.0,0.00020735,2]
[330798124,1719801042793,-500.0,0.00020735,2]
[330798125,1719801043036,-500.0,0.00020735,2]
[330798126,1719801043047,-500.0,0.00020735,2]
[330798127,1719801043056,-500.0,0.00020735,2]
[330798128,1719801043066,-500.0,0.00020735,2]
[330798129,1719801043075,-500.0,0.00020735,2]
[330798130,1719801043084,-500.0,0.00020735,2]
[330798131,1719801043094,-150.0,0.00020742,2]
[330798132,1719801043103,-500.0,0.00020761,2]
[330798133,1719801043114,-500.0,0.00020761,2]
[330798134,1719801043123,-500.0,0.00020761,2]
[330798135,1719801043132,-500.0,0.00020761,2]
[330798136,1719801043142,-500.0,0.00020761,2]
[330798137,1719801043152,-500.0,0.00020761,2]
[330798138,1719801043161,-500.0,0.00020761,2]
[330798139,1719801043170,-500.0,0.00020761,2]
[330798140,1719801043180,-500.0,0.00020761,2]
[330798141,1719801043189,-500.0,0.00020761,2]
[330798142,1719801043199,-500.0,0.00020761,2]
[330798143,1719801043208,-500.0,0.00020761,2]
[330798144,1719801043218,-500.0,0.00020761,2]
[330798145,1719801043227,-500.0,0.00020761,2]
[330798146,1719801043237,-500.0,0.00020761,2]
[330798147,1719801043247,-500.0,0.00020761,2]
[330798148,1719801043256,-500.0,0.00020761,2]
[330798149,1719801043266,-500.0,0.00020761,2]
[330798150,1719801043275,-500.0,0.00020761,2]
[330798151,1719801043284,-500.0,0.00020761,2]
[330798152,1719801043294,-500.0,0.00020761,2]
[330798153,1719801043304,-500.0,0.00020761,2]
[330798154,1719801043314,-500.0,0.00020761,2]
[330798155,1719801043324,-500.0,0.00020761,2]
[330798156,1719801043334,-500.0,0.00020761,2]
[330798157,1719801043346,-500.0,0.00020761,2]
[330798158,1719801043355,-500.0,0.00020761,2]
[330798159,1719801043365,-500.0,0.00020761,2]
[330798160,1719801043374,-500.0,0.00020761,2]
[330798161,1719801043384,-500.0,0.00020761,2]
[330798162,1719801043393,-500.0,0.00020761,2]
[330798163,1719801043403,-500.0,0.00020761,2]
[330798164,1719801043412,-500.0,0.00020761,2]
[330798165,1719801043421,-500.0,0.00020761,2]
[330798166,1719801043432,-500.0,0.00020761,2]
[330798167,1719801043441,-500.0,0.00020761,2]
[330798168,1719801043451,-500.0,0.00020761,2]
[330798169,1719801043461,-500.0,0.00020761,2]
[330798170,1719801043470,-500.0,0.00020761,2]
[330798171,1719801043479,-500.0,0.00020761,2]
[330798172,1719801043489,-500.0,0.00020761,2]
[330798173,1719801043498,-500.0,0.00020761,2]
[330798174,1719801043507,-500.0,0.00020761,2]
[330798175,1719801043517,-500.0,0.00020761,2]
[330798176,1719801043526,-500.0,0.00020761,2]
[330798177,1719801043535,-500.0,0.00020761,2]
[330798178,1719801043545,-500.0,0.00020761,2]
[330798179,1719801043554,-500.0,0.00020761,2]
[330798180,1719801043564,-500.0,0.00020761,2]
[330798181,1719801043574,-500.0,0.00020761,2]
[330798184,1719801043584,-500.0,0.00020761,2]
[330798187,1719801043594,-500.0,0.00020761,2]
[330798189,1719801043603,-500.0,0.00020761,2]
[330798191,1719801043613,-500.0,0.00020761,2]
[330798192,1719801043623,-500.0,0.00020761,2]
[330798193,1719801043632,-500.0,0.00020761,2]
[330798194,1719801043641,-150.0,0.00020767,2]
[330798195,1719801043655,-262.0813952,0.00020774,2]
[330798196,1719801043665,-150.0,0.00020781,2]
[330798197,1719801043675,-1500.0,0.00020784,2]
[330798198,1719801043685,-164.91172843,0.0002079,2]
[330798199,1719801043696,-195.89847219,0.00020791,2]
[330798200,1719801043706,-157.09904992,0.00020794,2]
[330798201,1719801043715,-2500.0,0.000208,2]
[330798202,1719801043725,-111210.26389,0.000208,3]
[330798203,1719801043736,-634.58184927,0.00020804,2]
[330798204,1719801043746,-155.7422207,0.00020814,2]
[330798205,1719801043756,-1162.47771187,0.00020826,2]
[330798206,1719801043766,-3463.76580714,0.00020826,2]
[330798207,1719801043776,-150.0,0.00020843,2]
[330798208,1719801043786,-153.4125173,0.00020844,2]
[330798209,1719801043795,-161.02444257,0.00020848,2]
[330798210,1719801043805,-383.37028258,0.00020851,2]
[330798211,1719801043815,-150.0,0.00020857,2]
[330798212,1719801043824,-154.94398225,0.00020858,2]
[330798213,1719801043834,-150.45691153,0.00020878,2]
[330798214,1719801043845,-44484.1055559,0.0002088,3]
[330798215,1719801043854,-813.52235668,0.0002088,2]
[330798216,1719801043864,-881.80386009,0.0002089,2]
[330798217,1719801043874,-24641.18328434,0.0002089,2]
[330798218,1719801043884,-581.33393112,0.0002089,2]
[330798219,1719801043893,-169.74477464,0.0002089,2]
[330798220,1719801043902,-2000.0,0.0002089,2]
[330798221,1719801043912,-200.0,0.0002089,2]
[330798222,1719801043921,-133452.316668,0.0002089,3]
[330798223,1719801043930,-995.64563,0.0002089,2]
[330798224,1719801043940,-447.01259007,0.0002089,2]
[330798225,1719801043949,-150.0,0.00020894,2]
[330798226,1719801043958,-162584.974389,0.000209,3]
[330798227,1719801043968,-35587.75277187,0.000209,2]
[330798228,1719801043977,-150.0,0.00020902,2]
[330798229,1719801043987,-151.0,0.00020902,2]
[330798230,1719801043997,-150.0,0.00020905,2]
[330798231,1719801044007,-383.37028258,0.00020908,2]
[330798233,1719801044019,-1500.0,0.00020942,2]
[330798235,1719801044028,-151.04669053,0.00020945,2]
[330798237,1719801044038,-165.46708011,0.0002095,2]
[330798239,1719801044047,-150.0,0.0002095,2]
[330798241,1719801044057,-152.75625898,0.00020952,2]
[330798243,1719801044067,-150.45691153,0.00020954,2]
[330798245,1719801044077,-262.0813952,0.00020954,2]
[330798247,1719801044088,-150.0,0.00020961,2]
[330798248,1719801044097,-1534.23957908,0.00020981,2]
[330798249,1719801044106,-262.0813952,0.00020986,2]
[330798250,1719801044117,-800.0,0.00020986,2]
[330798251,1719801044127,-21217.53801094,0.00020986,2]
[330798252,1719801044138,-150.0,0.00020995,2]
[330798253,1719801044148,-262.0813952,0.00020997,2]
[330798254,1719801044159,-432.22969473,0.00021,2]
[330798255,1719801044168,-500.000001,0.00021,5]
[330798256,1719801044178,-947.0,0.00021,9]
[330798257,1719801044188,-150.0,0.00021,2]
[330798258,1719801044198,-1250.0,0.00021,2]
[330798259,1719801044208,-982.0,0.00021,3]
[330798260,1719801044217,-203.086046,0.00021,2]
[330798261,1719801044227,-22242.0527779,0.0002102,3]
[330798262,1719801044237,-27097.4957315,0.0002102,3]
[330798263,1719801044246,-150.0,0.00021031,2]
[330798264,1719801044255,-150.45691153,0.00021033,2]
[330798265,1719801044265,-22242.0527779,0.0002104,3]
[330798266,1719801044275,-383.37028258,0.00021047,2]
[330798267,1719801044284,-953.03121734,0.00021047,2]
[330798268,1719801044294,-22242.0527779,0.0002106,3]
[330798269,1719801044304,-27097.4957315,0.0002106,3]
[330798270,1719801044314,-152.75625898,0.00021066,2]
[330798271,1719801044324,-50000.0,0.0002107,2]
[330798272,1719801044334,-155.7422207,0.00021071,2]
[330798273,1719801044344,-152.66657846,0.00021078,2]
[330798274,1719801044354,-345.90348,0.00021096,2]
[330798275,1719801044364,-2000.0,0.00021099,2]
[330798276,1719801044374,-200.0,0.00021099,2]
[330798277,1719801044384,-150.0,0.00021103,2]
[330798278,1719801044393,-1500.0,0.00021105,2]
[330798279,1719801044402,-150.0,0.00021108,2]
[330798280,1719801044412,-22242.0527779,0.00021115,3]
[330798281,1719801044421,-27097.4957315,0.00021115,3]
[330798282,1719801044432,-418.51126409,0.00021119,2]
[330798283,1719801044442,-154.94398225,0.00021122,2]
[330798284,1719801044452,-150.0,0.00021123,2]
[330798285,1719801044462,-500.0,0.00021126,2]
[330798286,1719801044471,-150.0,0.0002113,2]
[330798287,1719801044482,-500.0,0.00021135,2]
[330798288,1719801044491,-150.0,0.00021139,2]
[330798289,1719801044500,-150.0,0.00021141,2]
[330798290,1719801044510,-500.0,0.00021144,2]
[330798292,1719801044519,-500.0,0.00021153,2]
[330798294,1719801044529,-150.0,0.00021158,2]
[330798295,1719801044538,-1500.0,0.0002116,2]
[330798296,1719801044547,-500.0,0.00021162,2]
[330798297,1719801044557,-150.0,0.00021169,2]
[330798298,1719801044566,-500.0,0.0002117,2]
[330798299,1719801044575,-500.0,0.00021179,2]
[330798300,1719801044584,-500.0,0.00021188,2]
[330798301,1719801044595,-165.46708011,0.00021192,2]
[330798302,1719801044604,-157.09904992,0.00021196,2]
[330798303,1719801044613,-500.0,0.00021197,2]
[330798304,1719801044623,-150.0,0.00021197,2]
[330798305,1719801044633,-154.94398225,0.00021201,2]
[330798306,1719801044642,-500.0,0.00021206,2]
[330798307,1719801044652,-150.0,0.00021214,2]
[330798308,1719801044667,-686.18155533,0.00021214,2]
[330798309,1719801044677,-500.0,0.00021214,2]
[330798310,1719801044686,-500.0,0.00021223,2]
[330798311,1719801044696,-150.0,0.00021225,2]
[330798312,1719801044708,-170.92853389,0.00021227,2]
[330798313,1719801044718,-500.0,0.00021232,2]
[330798314,1719801044728,-500.0,0.00021241,2]
[330798315,1719801044739,-150.0,0.00021242,2]
[330798316,1719801044749,-150.0,0.00021246,2]
[330798317,1719801044759,-428.3,0.00021248,2]
[330798318,1719801044768,-500.0,0.0002125,2]
[330798319,1719801044779,-500.0,0.00021258,2]
[330798320,1719801044789,-500.0,0.00021267,2]
[330798321,1719801044798,-500.0,0.00021276,2]
[330798322,1719801044808,-150.0,0.00021277,2]
[330798323,1719801044818,-500.0,0.00021285,2]
[330798324,1719801044828,-500.0,0.00021294,2]
[330798325,1719801044839,-500.0,0.00021302,2]
[330798326,1719801044847,-150.0,0.00021308,2]
[330798327,1719801044856,-262.0813952,0.00021308,2]
[330798328,1719801044866,-150.0,0.00021308,2]
[330798329,1719801044875,-200.0,0.0002131,2]
[330798330,1719801044885,-686.18155533,0.00021311,2]
[330798331,1719801044895,-500.0,0.00021311,2]
[330798332,1719801044905,-500.0,0.0002132,2]
[330798333,1719801044915,-150.0,0.00021326,2]
[330798334,1719801044924,-166.66666668,0.00021333,2]
[330798335,1719801044934,-634.58184927,0.00021336,2]
[330798336,1719801044943,-161.67722669,0.00021342,2]
[330798337,1719801044953,-686.18155533,0.00021348,2]
[330798338,1719801044963,-22242.0527779,0.00021353,3]
[330798339,1719801044973,-383.37028258,0.00021355,2]
[330798340,1719801044982,-151.0372649,0.00021361,2]
[330798341,1719801044992,-161.02444257,0.00021365,2]
[330798342,1719801045002,-195.89847219,0.0002137,2]
[330798343,1719801045012,-634.58184927,0.00021371,2]
[330798344,1719801045021,-150.0,0.00021377,2]
[330798345,1719801045031,-174.39644681,0.00021397,2]
[330798346,1719801045041,-150.0,0.00021408,2]
[330798347,1719801045051,-686.18155533,0.00021418,2]
[330798348,1719801045061,-165.46708011,0.00021433,2]
[330798349,1719801045071,-150.0,0.00021435,2]
[330798350,1719801045080,-150.0,0.00021442,2]
[330798351,1719801045090,-150.0,0.00021445,2]
[330798352,1719801045100,-27097.4957315,0.00021446,3]
[330798353,1719801045109,-150.45691153,0.00021453,2]
[330798354,1719801045119,-150.0,0.00021453,2]
[330798355,1719801045129,-150.0,0.00021462,2]
[330798356,1719801045138,-22242.0527779,0.00021467,3]
[330798357,1719801045148,-1500.0,0.00021472,2]
[330798358,1719801045158,-500.0,0.00021474,2]
[330798359,1719801045167,-22242.0527779,0.00021477,3]
[330798360,1719801045177,-27097.4957315,0.00021477,3]
[330798361,1719801045186,-500.0,0.00021482,2]
[330798362,1719801045196,-22242.0527779,0.00021487,3]
[330798363,1719801045205,-54194.9914631,0.00021487,3]
[330798364,1719801045215,-500.0,0.00021491,2]
[330798365,1719801045224,-22242.0527779,0.00021495,3]
[330798366,1719801045234,-500.0,0.00021497,2]
[330798367,1719801045244,-500.0,0.00021497,2]
[330798368,1719801045253,-500.0,0.00021497,2]
[330798369,1719801045263,-500.0,0.00021497,2]
[330798370,1719801045281,-500.0,0.00021497,2]
[330798371,1719801045292,-500.0,0.00021497,2]
[330798372,1719801045302,-500.0,0.00021497,2]
[330798373,1719801045312,-500.0,0.00021497,2]
[330798374,1719801045322,-500.0,0.00021497,2]
[330798375,1719801045332,-500.0,0.00021497,2]
[330798376,1719801045342,-500.0,0.00021497,2]
[330798377,1719801045352,-500.0,0.00021497,2]
[330798378,1719801045362,-500.0,0.00021497,2]
[330798379,1719801045372,-500.0,0.00021497,2]
[330798380,1719801045382,-500.0,0.00021497,2]
[330798381,1719801045478,-500.0,0.00021497,2]
[330798382,1719801045488,-500.0,0.00021497,2]
[330798383,1719801045497,-500.0,0.00021497,2]
[330798384,1719801045507,-500.0,0.00021497,2]
[330798385,1719801045516,-500.0,0.00021497,2]
[330798386,1719801045526,-500.0,0.00021497,2]
[330798387,1719801045536,-500.0,0.00021497,2]
[330798388,1719801045545,-500.0,0.00021497,2]
[330798389,1719801045555,-500.0,0.00021497,2]
[330798390,1719801045564,-500.0,0.00021497,2]
[330798391,1719801045574,-500.0,0.00021497,2]
[330798392,1719801045584,-500.0,0.00021497,2]
[330798393,1719801045595,-500.0,0.00021497,2]
[330798394,1719801045605,-500.0,0.00021497,2]
[330798395,1719801045615,-500.0,0.00021497,2]
[330798396,1719801045629,-500.0,0.00021497,2]
[330798397,1719801045639,-500.0,0.00021497,2]
[330798398,1719801045649,-500.0,0.00021497,2]
[330798399,1719801045664,-500.0,0.00021497,2]
[330798400,1719801045674,-500.0,0.00021497,2]
[330798401,1719801045683,-500.0,0.00021497,2]
[330798402,1719801045692,-500.0,0.00021497,2]
[330798403,1719801045703,-500.0,0.00021497,2]
[330798404,1719801045713,-500.0,0.00021497,2]
[330798405,1719801045722,-500.0,0.00021497,2]
[330798406,1719801045733,-500.0,0.00021497,2]
[330798407,1719801045743,-500.0,0.00021497,2]
[330798408,1719801045753,-500.0,0.00021497,2]
[330798409,1719801045764,-500.0,0.00021497,2]
[330798410,1719801045774,-500.0,0.00021497,2]
[330798411,1719801045784,-513.28,0.00021497,2]